fUST/lending_fUST_20250627
["ID","MTS","AMOUNT","RATE_DAILY","PERIOD"]
[368144063,1751037054825,-151.255685,0.000233,7]
[368144065,1751037054834,-151.0,0.000233,7]
[368144067,1751037054845,-151.0,0.000233,7]
[368144069,1751037054854,-151.0,0.000233,7]
[368144071,1751037054863,-650.309098,0.000233,7]
[368144073,1751037054872,-650.309098,0.000233,7]
[368144075,1751037054882,-172.301794,0.000233,7]
[368144077,1751037054891,-172.301794,0.000233,7]
[368144079,1751037054900,-584.255639,0.000233,7]
[368144081,1751037054910,-584.255639,0.000233,7]
[368144083,1751037054919,-1163.103923,0.000233,7]
[368144085,1751037054929,-1163.103923,0.000233,7]
[368144087,1751037054938,-153.164602,0.000233,7]
[368144089,1751037054947,-151.0,0.00023315,2]
[368144091,1751037054958,-1100.0,0.00023317,2]
[368144093,1751037054967,-1200.0,0.00023323,2]
[368144095,1751037054979,-673.05894953,0.00023325,2]
[368144096,1751037054989,-1200.0,0.00023326,2]
[368144098,1751037054998,-1200.0,0.0002333,2]
[368144100,1751037055007,-1100.0,0.00023338,2]
[368144102,1751037055017,-151.0,0.00023343,2]
[368144104,1751037055026,-1100.0,0.00023346,2]
[368144106,1751037055035,-1100.0,0.00023358,2]
[368144108,1751037055045,-217.90292315,0.0002337,2]
[368144110,1751037055054,-1200.0,0.00023373,2]
[368144112,1751037055064,-1100.0,0.00023377,2]
[368144123,1751037055158,-5000.0,0.00023381,2]
[368144125,1751037055168,-151.0,0.00023386,6]
[368144127,1751037055178,-1100.0,0.00023386,2]
[368144129,1751037055187,-151.0,0.00023417,7]
[368144131,1751037055196,-9157.57821155,0.00023417,9]
[368144133,1751037055206,-1500.0,0.00023454,2]
[368144135,1751037055215,-1100.0,0.00023457,2]
[368144137,1751037055224,-705.0,0.00023488,2]
[368144139,1751037055234,-718.1363461,0.00023504,2]
[368144141,1751037055243,-176.0,0.00023519,2]
[368144143,1751037055253,-2500.0,0.00023524,2]
[368144145,1751037055262,-3000.0,0.00023524,2]
[368144147,1751037055273,-1672.22325521,0.00023524,2]
[368144149,1751037055282,-2412.75464604,0.00023524,2]
[368144151,1751037055291,-1100.0,0.00023526,2]
[368144153,1751037055301,-1001.34400268,0.00023535,2]
[368144155,1751037055311,-151.0,0.00023535,7]
[368144157,1751037055320,-151.0,0.00023535,7]
[368144159,1751037055329,-151.0,0.00023535,7]
[368144161,1751037055339,-151.0,0.00023535,7]
[368144163,1751037055348,-1100.0,0.00023539,2]
[368144165,1751037055357,-1200.0,0.00023551,2]
[368144167,1751037055367,-1200.0,0.00023556,2]
[368144169,1751037055376,-200.0,0.00023561,2]
[368144171,1751037055385,-200.0,0.00023561,2]
[368144173,1751037055394,-200.0,0.00023561,2]
[368144175,1751037055407,-200.0,0.00023561,2]
[368144177,1751037055416,-200.0,0.00023561,2]
[368144179,1751037055425,-200.0,0.00023561,2]
[368144181,1751037055434,-200.0,0.00023561,2]
[368144183,1751037055445,-200.0,0.00023561,2]
[368144185,1751037055454,-297.42413746,0.00023561,2]
[368144187,1751037055463,-483.25,0.00023561,2]
[368144189,1751037055473,-514.72,0.00023561,2]
[368144190,1751037055482,-1049.26,0.00023561,2]
[368144193,1751037055492,-151.0,0.00023561,7]
[368144194,1751037055502,-638.05,0.00023561,2]
[368144196,1751037055511,-510.36,0.00023561,2]
[368144198,1751037055521,-1068.57,0.00023561,2]
[368144200,1751037055530,-546.21,0.00023561,2]
[368144202,1751037055540,-935.0,0.00023561,2]
[368144204,1751037055549,-1211.91,0.00023561,2]
[368144206,1751037055559,-522.14,0.00023561,2]
[368144208,1751037055569,-1142.35,0.00023561,2]
[368144210,1751037055579,-2637.29,0.00023561,2]
[368144212,1751037055588,-514.1,0.00023561,2]
[368144214,1751037055598,-637.29,0.00023561,2]
[368144216,1751037055608,-460.0,0.00023561,2]
[368144218,1751037055617,-460.0,0.00023561,2]
[368144220,1751037055627,-460.0,0.00023561,2]
[368144222,1751037055636,-460.0,0.00023561,2]
[368144224,1751037055646,-1343.81,0.00023561,2]
[368144226,1751037055657,-462.27,0.00023561,2]
[368144228,1751037055667,-2428.657275,0.00023561,7]
[368144231,1751037055677,-2428.657275,0.00023561,7]
[368144232,1751037055687,-359.7693823,0.00023561,2]
[368144234,1751037055696,-575.82,0.00023561,2]
[368144236,1751037055705,-576.2,0.00023561,2]
[368144238,1751037055715,-1445.24,0.00023561,2]
[368144240,1751037055723,-571.9,0.00023561,2]
[368144242,1751037055733,-460.0,0.00023561,2]
[368144244,1751037055742,-2195.56,0.00023561,2]
[368144246,1751037055751,-1640.62,0.00023561,2]
[368144248,1751037055761,-151.0,0.00023561,7]
[368144250,1751037055770,-468.05,0.00023561,2]
[368144252,1751037055780,-655.33,0.00023561,2]
[368144254,1751037055789,-321.379987,0.00023561,7]
[368144256,1751037055799,-954.0,0.00023561,2]
[368144258,1751037055811,-321.379987,0.00023561,7]
[368144260,1751037055821,-625.47,0.00023561,2]
[368144262,1751037055830,-1073.39,0.00023561,2]
[368144264,1751037055840,-205.538042,0.00023561,7]
[368144266,1751037055850,-4296.07,0.00023561,2]
[368144268,1751037055860,-2582.88,0.00023561,2]
[368144270,1751037055869,-1500.0,0.00023583,2]
[368144272,1751037055879,-1500.0,0.00023583,2]
[368144274,1751037055888,-1100.0,0.00023594,2]
[368144276,1751037055897,-151.0,0.000236,8]
[368144278,1751037055907,-1200.0,0.00023604,2]
[368144280,1751037055916,-9157.57821155,0.00023624,9]
[368144282,1751037055925,-709.311104,0.00023626,4]
[368144284,1751037055935,-705.0,0.00023631,2]
[368144286,1751037055944,-600.0,0.00023652,2]
[368144288,1751037055953,-159.2394861,0.00023659,2]
[368144290,1751037055963,-159.2394861,0.00023659,2]
[368144292,1751037055975,-1100.0,0.00023662,2]
[368144294,1751037055984,-705.0,0.00023663,2]
[368144296,1751037055993,-375.0,0.00023671,2]
[368144298,1751037056003,-225.0,0.00023671,2]
[368144300,1751037056012,-500.0,0.00023676,2]
[368144302,1751037056022,-151.0,0.00023687,6]
[368144304,1751037056031,-1100.0,0.00023735,2]
[368144306,1751037056040,-165.754722,0.00023744,2]
[368144308,1751037056049,-1100.0,0.00023755,2]
[368144310,1751037056058,-151.0,0.000238,8]
[368144312,1751037056071,-10000.0,0.000238,4]
[368144314,1751037056080,-212.54100289,0.00023819,2]
[368144316,1751037056089,-600.0,0.00023821,2]
[368144318,1751037056098,-9157.57821155,0.00023831,10]
[368144320,1751037056107,-483.25,0.00023835,2]
[368144322,1751037056117,-514.72,0.00023835,2]
[368144324,1751037056126,-1049.26,0.00023835,2]
[368144326,1751037056136,-638.05,0.00023835,2]
[368144328,1751037056145,-510.36,0.00023835,2]
[368144330,1751037056154,-1068.57,0.00023835,2]
[368144332,1751037056164,-546.21,0.00023835,2]
[368144333,1751037056175,-935.0,0.00023835,2]
[368144335,1751037056186,-1211.91,0.00023835,2]
[368144337,1751037056195,-522.14,0.00023835,2]
[368144339,1751037056204,-1142.35,0.00023835,2]
[368144341,1751037056214,-2637.29,0.00023835,2]
[368144343,1751037056223,-514.1,0.00023835,2]
[368144345,1751037056232,-637.29,0.00023835,2]
[368144347,1751037056242,-460.0,0.00023835,2]
[368144349,1751037056251,-460.0,0.00023835,2]
[368144351,1751037056262,-460.0,0.00023835,2]
[368144353,1751037056271,-460.0,0.00023835,2]
[368144355,1751037056281,-1343.81,0.00023835,2]
[368144357,1751037056290,-462.27,0.00023835,2]
[368144359,1751037056299,-575.82,0.00023835,2]
[368144361,1751037056308,-576.2,0.00023835,2]
[368144363,1751037056321,-1445.24,0.00023835,2]
[368144365,1751037056330,-571.9,0.00023835,2]
[368144367,1751037056339,-460.0,0.00023835,2]
[368144369,1751037056348,-2195.56,0.00023835,2]
[368144371,1751037056357,-1640.62,0.00023835,2]
[368144373,1751037056366,-468.05,0.00023835,2]
[368144375,1751037056375,-655.33,0.00023835,2]
[368144377,1751037056384,-954.0,0.00023835,2]
[368144379,1751037056393,-625.47,0.00023835,2]
[368144381,1751037056407,-1073.39,0.00023835,2]
[368144383,1751037056417,-4296.07,0.00023835,2]
[368144385,1751037056427,-2582.88,0.00023835,2]
[368144387,1751037056436,-600.0,0.00023845,2]
[368144389,1751037056446,-500.0,0.00023876,2]
[368144391,1751037056455,-5000.0,0.00023929,2]
[368144393,1751037056464,-500.0,0.0002397,2]
[368144395,1751037056476,-1200.0,0.00023972,2]
[368144397,1751037056487,-200.0,0.0002398,9]
[368144399,1751037056497,-151.0,0.00023987,6]
[368144401,1751037056507,-600.0,0.00023989,2]
[368144403,1751037056516,-1200.0,0.00023993,2]
[368144405,1751037056526,-119144.53302062,0.00024,2]
[368144407,1751037056535,-158.0,0.00024,2]
[368144409,1751037056545,-178.2769559,0.00024,7]
[368144411,1751037056555,-1474.30033777,0.00024,2]
[368144413,1751037056566,-2000.0,0.00024,2]
[368144415,1751037056576,-2000.0,0.00024,2]
[368144417,1751037056586,-985.58544101,0.00024,4]
[368144419,1751037056595,-151.0,0.00024,7]
[368144421,1751037056605,-151.0,0.00024,7]
[368144423,1751037056615,-151.0,0.00024,7]
[368144425,1751037056624,-151.0,0.00024,7]
[368144427,1751037056633,-151.0,0.00024,7]
[368144429,1751037056644,-151.0,0.00024,7]
[368144431,1751037056654,-151.0,0.00024,7]
[368144433,1751037056663,-185.0,0.00024,7]
[368144435,1751037056674,-213.48812,0.00024,7]
[368144437,1751037056684,-213.48812,0.00024,7]
[368144439,1751037056693,-160.0,0.00024,7]
[368144441,1751037056703,-160.0,0.00024,7]
[368144443,1751037056712,-213.75309343,0.00024,7]
[368144445,1751037056722,-350.0,0.00024,10]
[368144447,1751037056732,-620.39392869,0.00024,4]
[368144449,1751037056742,-151.0,0.00024,7]
[368144451,1751037056751,-151.0,0.00024,7]
[368144452,1751037056761,-151.0,0.00024,7]
[368144455,1751037056771,-151.0,0.00024,7]
[368144457,1751037056780,-151.0,0.00024,7]
[368144458,1751037056790,-151.0,0.00024,7]
[368144461,1751037056800,-159.776707,0.00024,7]
[368144462,1751037056810,-151.0,0.00024,7]
[368144464,1751037056822,-151.0,0.00024,7]
[368144466,1751037056832,-181.725246,0.00024,7]
[368144468,1751037056841,-181.725246,0.00024,7]
[368144470,1751037056850,-394.82294,0.00024,2]
[368144472,1751037056859,-394.82294,0.00024,2]
[368144474,1751037056867,-151.0,0.00024,7]
[368144476,1751037056876,-500.0,0.00024,9]
[368144478,1751037056886,-154.011906,0.00024,7]
[368144480,1751037056895,-584.255639,0.00024,7]
[368144481,1751037056904,-584.255639,0.00024,7]
[368144482,1751037056914,-859.03679057,0.00024,2]
[368144483,1751037056923,-524.32400359,0.00024,10]
[368144484,1751037057015,-524.32400359,0.00024,3]
[368144485,1751037057025,-230.26210603,0.00024,7]
[368144487,1751037057034,-230.26210603,0.00024,10]
[368144489,1751037057043,-640.0,0.00024,2]
[368144491,1751037057053,-160.0,0.00024,7]
[368144493,1751037057062,-160.0,0.00024,7]
[368144495,1751037057071,-214.91804724,0.00024,7]
[368144497,1751037057081,-836.98798914,0.00024,7]
[368144499,1751037057090,-836.98798914,0.00024,10]
[368144501,1751037057099,-160.0,0.00024,7]
[368144503,1751037057108,-160.0,0.00024,10]
[368144505,1751037057117,-2000.0,0.00024002,2]
[368144507,1751037057126,-1200.0,0.00024002,2]
[368144509,1751037057136,-151.0,0.00024004,7]
[368144511,1751037057145,-650.309098,0.00024004,7]
[368144513,1751037057154,-650.309098,0.00024004,7]
[368144515,1751037057164,-172.301794,0.00024004,7]
[368144517,1751037057174,-172.301794,0.00024004,7]
[368144519,1751037057183,-1163.103923,0.00024004,7]
[368144521,1751037057193,-1163.103923,0.00024004,7]
[368144523,1751037057202,-1100.0,0.0002401,2]
[368144525,1751037057212,-600.0,0.00024022,2]
[368144527,1751037057221,-9157.57821155,0.00024038,10]
[368144529,1751037057230,-10093.28426925,0.00024062,2]
[368144531,1751037057239,-54292.21774689,0.00024062,2]
[368144533,1751037057249,-151.0,0.00024062,7]
[368144536,1751037057259,-151.0,0.00024062,7]
[368144537,1751037057268,-464.23458,0.00024062,7]
[368144540,1751037057277,-464.23458,0.00024062,7]
[368144542,1751037057287,-151.0,0.00024062,7]
[368144544,1751037057296,-190.669086,0.00024062,7]
[368144546,1751037057305,-151.0,0.00024062,7]
[368144548,1751037057314,-151.0,0.00024062,7]
[368144550,1751037057324,-151.0,0.00024062,7]
[368144551,1751037057333,-151.0,0.00024062,7]
[368144553,1751037057343,-198.0,0.00024062,7]
[368144555,1751037057352,-151.0,0.00024062,7]
[368144558,1751037057362,-151.0,0.00024062,7]
[368144559,1751037057371,-151.0,0.00024062,7]
[368144561,1751037057380,-2428.657275,0.00024062,7]
[368144563,1751037057389,-1066.27826278,0.00024062,7]
[368144579,1751037057527,-779.00002335,0.00024062,7]
[368144581,1751037057539,-583.37898887,0.00024062,7]
[368144583,1751037057548,-151.0,0.00024062,7]
[368144585,1751037057557,-151.0,0.00024062,7]
[368144587,1751037057568,-321.379987,0.00024062,7]
[368144589,1751037057578,-321.379987,0.00024062,7]
[368144591,1751037057587,-205.538042,0.00024062,7]
[368144593,1751037057596,-688.58794041,0.00024064,2]
[368144595,1751037057607,-327.2,0.00024064,2]
[368144598,1751037057626,-477.84,0.00023013,2]
[368144600,1751037057636,-205.538042,0.00023561,7]
[368144602,1751037057646,-84.21205959,0.00024064,2]
[368144604,1751037057655,-0.27272781,0.00024072,2]
[368144622,1751037057835,-195.88365637,0.00019177,2]
[368144623,1751037057844,-175.35087018,0.00019177,2]
[368144624,1751037057856,-72.67900767,0.00019177,2]
[368144625,1751037057865,-468.35712311,0.00019177,2]
[368144626,1751037057874,-500.0,0.00021918,2]
[368144627,1751037057883,-500.0,0.00021918,2]
[368144628,1751037057892,-500.0,0.00021918,2]
[368144629,1751037057902,-500.0,0.00021918,2]
[368144630,1751037057911,-500.0,0.00021918,2]
[368144631,1751037057920,-209.65454556,0.00021918,2]
[368144633,1751037057930,-500.0,0.00021918,2]
[368144634,1751037057939,-500.0,0.00021918,2]
[368144636,1751037057948,-500.0,0.00021918,2]
[368144638,1751037057957,-877.09516419,0.00022465,2]
[368144639,1751037057968,-488.35615697,0.00022465,2]
[368144649,1751037058166,-322.6576842,0.00019178,2]
[368144652,1751037058182,-146.30209181,0.00019178,2]
[368144654,1751037058191,-460.0,0.00019178,2]
[368144656,1751037058201,-460.0,0.00019178,2]
[368144658,1751037058210,-460.0,0.00019452,2]
[368144660,1751037058219,-460.0,0.00019726,2]
[368144662,1751037058229,-100000.0,0.0001999,2]
[368144664,1751037058238,-460.0,0.0002,2]
[368144666,1751037058247,-460.0,0.00020273,2]
[368144668,1751037058257,-500.0,0.00021917,2]
[368144670,1751037058265,-500.0,0.00021917,2]
[368144672,1751037058274,-198.4,0.00021917,2]
[368144674,1751037058284,-151.0,0.00022,7]
[368144676,1751037058293,-1147.29867884,0.00022465,2]
[368144678,1751037058303,-2512.75,0.00022739,2]
[368144680,1751037058312,-2512.75,0.00023013,2]
[368144682,1751037058321,-151.0,0.00023239,7]
[368144683,1751037058331,-477.84,0.00023287,2]
[368144684,1751037058340,-2512.75,0.00023287,2]
[368144685,1751037058350,-158.139404,0.00023417,7]
[368144687,1751037058359,-477.84,0.00023561,2]
[368144689,1751037058368,-2512.75,0.00023561,2]
[368144691,1751037058377,-477.84,0.00023835,2]
[368144693,1751037058387,-2512.75,0.00023835,2]
[368144695,1751037058396,-151.0,0.00024,7]
[368144697,1751037058410,-205.538042,0.00024062,7]
[368144699,1751037058419,-2999.72727219,0.00024072,2]
[368144701,1751037058428,-3600.0,0.00024072,2]
[368144711,1751037058520,-1100.0,0.00024072,2]
[368144714,1751037058532,-500.0,0.00024078,2]
[368144716,1751037058542,-1200.0,0.00024088,2]
[368144718,1751037058551,-293.85068442,0.00024096,2]
[368144720,1751037058561,-600.0,0.00024097,2]
[368144722,1751037058570,-151.0,0.000241,10]
[368144724,1751037058579,-1000.0,0.000241,5]
[368144726,1751037058589,-151.0,0.00024109,7]
[368144728,1751037058598,-151.0,0.00024109,7]
[368144730,1751037058608,-213.48812,0.00024109,7]
[368144732,1751037058617,-213.48812,0.00024109,7]
[368144734,1751037058627,-483.25,0.00024109,2]
[368144736,1751037058637,-514.72,0.00024109,2]
[368144738,1751037058646,-1049.26,0.00024109,2]
[368144740,1751037058657,-638.05,0.00024109,2]
[368144742,1751037058665,-1068.57,0.00024109,2]
[368144744,1751037058675,-546.21,0.00024109,2]
[368144746,1751037058684,-935.0,0.00024109,2]
[368144748,1751037058693,-1211.91,0.00024109,2]
[368144750,1751037058703,-522.14,0.00024109,2]
[368144752,1751037058712,-1142.35,0.00024109,2]
[368144754,1751037058722,-2637.29,0.00024109,2]
[368144756,1751037058732,-514.1,0.00024109,2]
[368144758,1751037058741,-637.29,0.00024109,2]
[368144760,1751037058750,-460.0,0.00024109,2]
[368144762,1751037058761,-460.0,0.00024109,2]
[368144764,1751037058770,-460.0,0.00024109,2]
[368144766,1751037058779,-460.0,0.00024109,2]
[368144768,1751037058789,-1343.81,0.00024109,2]
[368144770,1751037058798,-462.27,0.00024109,2]
[368144772,1751037058808,-575.82,0.00024109,2]
[368144774,1751037058818,-576.2,0.00024109,2]
[368144776,1751037058827,-1445.24,0.00024109,2]
[368144778,1751037058836,-571.9,0.00024109,2]
[368144780,1751037058846,-460.0,0.00024109,2]
[368144782,1751037058855,-2195.56,0.00024109,2]
[368144784,1751037058864,-1640.62,0.00024109,2]
[368144786,1751037058873,-468.05,0.00024109,2]
[368144788,1751037058882,-655.33,0.00024109,2]
[368144790,1751037058892,-954.0,0.00024109,2]
[368144792,1751037058901,-625.47,0.00024109,2]
[368144794,1751037058911,-1073.39,0.00024109,2]
[368144796,1751037058920,-4296.07,0.00024109,2]
[368144798,1751037058929,-2582.88,0.00024109,2]
[368144800,1751037058939,-477.84,0.00024109,2]
[368144802,1751037058948,-2512.75,0.00024109,2]
[368144804,1751037058957,-500.0,0.0002412,2]
[368144806,1751037058966,-2000.0,0.00024131,2]
[368144808,1751037058978,-2000.0,0.00024131,2]
[368144810,1751037058990,-151.0,0.00024139,7]
[368144812,1751037059001,-151.0,0.00024139,7]
[368144814,1751037059010,-151.0,0.00024139,7]
[368144816,1751037059020,-151.0,0.00024139,7]
[368144818,1751037059030,-151.0,0.00024139,7]
[368144820,1751037059040,-2959.07701305,0.0002415,2]
[368144822,1751037059050,-388.0,0.00024164,7]
[368144824,1751037059059,-152.0,0.00024164,7]
[368144826,1751037059069,-172.0,0.00024164,7]
[368144828,1751037059078,-385.0,0.00024164,7]
[368144830,1751037059087,-177.4788171,0.00024192,2]
[368144832,1751037059097,-177.4788171,0.00024192,2]
[368144834,1751037059106,-574.9477627,0.00024192,2]
[368144835,1751037059115,-177.4788171,0.00024192,2]
[368144838,1751037059126,-215.0738,0.00024202,2]
[368144839,1751037059136,-1200.0,0.00024204,2]
[368144842,1751037059145,-668.79553572,0.0002422,2]
[368144843,1751037059155,-9157.57821155,0.00024245,10]
[368144846,1751037059165,-1200.0,0.00024264,2]
[368144848,1751037059174,-150.0,0.00024273,2]
[368144850,1751037059186,-150.0,0.00024273,2]
[368144851,1751037059195,-507.8810636,0.00024275,2]
[368144854,1751037059205,-600.0,0.00024279,2]
[368144856,1751037059214,-1100.0,0.00024282,2]
[368144857,1751037059224,-366.1147399,0.00024285,2]
[368144860,1751037059234,-151.0,0.00024288,6]
[368144862,1751037059243,-193215.09658658,0.000243,7]
[368144864,1751037059256,-11415.36168592,0.000243,7]
[368144866,1751037059267,-5609.72122539,0.000243,7]
[368144868,1751037059279,-515.70928475,0.000243,7]
[368144897,1751037059552,165.24854837,0.000222,69]
[368145053,1751037346354,162.781146,0.00013699,2]
[368145054,1751037932508,153.32499634,0.00018074,2]
[368145055,1751037955152,-300.0,0.00018174,2]
[368145056,1751037955173,-122.44490829,0.00018174,2]
[368145057,1751037956083,-177.55509171,0.00018174,2]
[368145058,1751037956104,-300.0,0.00018174,2]
[368145059,1751037956125,-991.98738403,0.00018175,2]
[368145060,1751037971483,307.956402,0.00018,2]
[368145061,1751037980156,4941.0,0.000181,2]
[368145062,1751037981834,196.37534362,0.00018074,2]
[368145064,1751038038209,-182.98528351,0.00018174,2]
[368145065,1751038046141,-414.0,0.00018174,2]
[368145070,1751038113752,174857.28030555,0.00025875,120]
[368145071,1751038114016,6633.83469094,0.00017989,2]
[368145072,1751038114043,20000.0,0.00017989,2]
[368145073,1751038114068,20000.0,0.00017989,2]
[368145074,1751038114093,20000.0,0.00017989,2]
[368145075,1751038114118,20000.0,0.00017989,2]
[368145076,1751038114143,20000.0,0.00017989,2]
[368145077,1751038114167,20000.0,0.00017989,2]
[368145078,1751038114192,20000.0,0.00017989,2]
[368145079,1751038114216,20000.0,0.00017989,2]
[368145080,1751038114239,20000.0,0.00017989,2]
[368145081,1751038114263,20000.0,0.00017989,2]
[368145082,1751038122924,330.080311,0.00025875,120]
[368145098,1751038151190,151.0,0.000164,2]
[368145102,1751038166064,5000.0,0.0001811,9]
[368145103,1751038174159,-151.0,0.000173,2]
[368145104,1751038174181,-158178.60255229,0.00017989,2]
[368145105,1751038174202,-603.01471649,0.00018174,2]
[368145106,1751038174224,-20292.34347053,0.00018175,2]
[368145107,1751038177893,186.72856847,0.0001811,9]
[368145111,1751038185906,5000.0,0.0001811,9]
[368145151,1751038232429,-530.2301953,0.0001794,2]
[368145152,1751038232438,-5000.0,0.00017993,2]
[368145153,1751038232448,-3615.66914544,0.00018175,2]
[368145154,1751038232458,-151.0,0.000182,2]
[368145155,1751038232468,-179.89206476,0.00018449,2]
[368145156,1751038232477,-1242.0,0.000185,2]
[368145157,1751038232488,-571.91904621,0.00018521,2]
[368145158,1751038232499,-1200.0,0.00019077,2]
[368145159,1751038232511,-215.80951635,0.00019078,2]
[368145172,1751038238203,-436.50586397,0.00019078,2]
[368145173,1751038238232,-2823.64602704,0.00019078,2]
[368145174,1751038238243,-151.0,0.000191,2]
[368145175,1751038238252,-247.0,0.00019167,2]
[368145176,1751038238262,-171.63104088,0.00019167,2]
[368145177,1751038238273,-128.36895912,0.00019167,2]
[368145179,1751038238283,-460.30943153,0.00019168,2]
[368145180,1751038238295,-9518.04,0.00019168,2]
[368145181,1751038238306,-2749.10157309,0.00019168,2]
[368145182,1751038238316,-174.68,0.00019168,3]
[368145183,1751038238326,-524.09,0.00019168,3]
[368145184,1751038238335,-500.0,0.0001917,2]
[368145185,1751038238344,-329.07574983,0.0001917,2]
[368145186,1751038238355,-500.0,0.0001917,2]
[368145187,1751038238366,-495.43024697,0.0001917,2]
[368145189,1751038238375,-500.0,0.0001917,2]
[368145191,1751038238385,-500.0,0.0001917,2]
[368145193,1751038238394,-500.0,0.0001917,2]
[368145194,1751038238404,-500.0,0.0001917,2]
[368145195,1751038238414,-500.0,0.0001917,2]
[368145196,1751038238424,-500.0,0.0001917,2]
[368145197,1751038238437,-500.0,0.0001917,2]
[368145198,1751038238448,-500.0,0.0001917,2]
[368145199,1751038238458,-276.15741394,0.0001917,2]
[368145200,1751038238469,-500.0,0.0001917,2]
[368145201,1751038238478,-500.0,0.0001917,2]
[368145202,1751038238487,-500.0,0.0001917,2]
[368145203,1751038238497,-562.00818915,0.0001917,2]
[368145204,1751038238506,-597.97912359,0.0001917,2]
[368145205,1751038238516,-500.0,0.0001917,2]
[368145206,1751038238525,-500.0,0.0001917,2]
[368145207,1751038238534,-500.0,0.0001917,2]
[368145208,1751038238544,-500.0,0.0001917,2]
[368145209,1751038238553,-56.27770343,0.0001917,2]
[368145210,1751038238565,-443.72229657,0.0001917,2]
[368145211,1751038238575,-500.0,0.0001917,2]
[368145212,1751038238584,-204.91979871,0.0001917,2]
[368145213,1751038238593,-500.0,0.0001917,2]
[368145214,1751038238602,-156.34158389,0.0001917,2]
[368145215,1751038238612,-499.83462784,0.0001917,2]
[368145216,1751038238621,-500.0,0.0001917,2]
[368145217,1751038238631,-500.0,0.0001917,2]
[368145218,1751038238640,-500.0,0.0001917,2]
[368145219,1751038238650,-478.34507875,0.0001917,2]
[368145220,1751038238663,-21.65492125,0.0001917,2]
[368145221,1751038238672,-500.0,0.0001917,2]
[368145222,1751038238682,-500.0,0.0001917,2]
[368145223,1751038238692,-334.85865091,0.0001917,2]
[368145224,1751038238702,-500.0,0.0001917,2]
[368145225,1751038238712,-500.0,0.0001917,2]
[368145226,1751038238722,-500.0,0.00019173,2]
[368145227,1751038238731,-574.56198185,0.00019173,2]
[368145228,1751038238741,-500.0,0.00019173,2]
[368145229,1751038238750,-500.0,0.00019173,2]
[368145230,1751038238761,-500.12066724,0.00019173,2]
[368145231,1751038238770,-369.03910652,0.00019173,2]
[368145232,1751038238780,-160.43060765,0.00019173,2]
[368145233,1751038238796,-49.72319888,0.00019173,2]
[368145234,1751038238806,-323.57981548,0.00019173,2]
[368145235,1751038238815,-630.87637549,0.00019173,2]
[368145236,1751038238825,-500.0,0.00019173,2]
[368145237,1751038238835,-455.15147586,0.00019173,2]
[368145238,1751038238846,-44.84852414,0.00019173,2]
[368145239,1751038238856,-491.34221429,0.00019173,2]
[368145240,1751038238867,-8.65778571,0.00019173,2]
[368145241,1751038238877,-500.0,0.00019173,2]
[368145242,1751038238887,-500.0,0.00019173,2]
[368145243,1751038238897,-500.44290652,0.00019173,2]
[368145244,1751038238906,-500.0,0.00019173,2]
[368145245,1751038238917,-500.0,0.00019173,2]
[368145246,1751038239048,-504.68337757,0.00019173,2]